Cogmind - Beta 14 @@@ ROGUE MODE // 2025.03.10 @ 23:45:43 Player: puppuppit Result: Destroyed by V1-PXM(R) with Subdweller Shrapnel Launcher Performance ------------- Evolutions (0) 0 Regions Visited (2) 400 Robots Destroyed (45) 225 Value Destroyed (1003) 1003 Prototype IDs (0) 0 Alien Tech Used (0) 0 Bonus (0) 0 TOTAL SCORE: 1628 Bonus ------- None Cogmind --------- Core Integrity 0/250 Matter 281/300 Energy 93/100 System Corruption 0% Temperature Cool (0) Movement Rolling (130) Ox2 Location -10/Subcaves Parts ------- > --- POWER (1) -------- (None) > --- PROPULSION (2) --- Subdweller Monowheel > --- UTILITY (2) ------ High-capacity Storage Unit Makeshift Thermal Plating > --- WEAPON (2) ------- Heavy Assault Rifle Grenade Launcher > --- INVENTORY (20) --- Subdweller Power Source Subdweller Power Source Subdweller Power Source Subdweller Power Source Subdweller Monowheel Medium Matter Pod (100) Medium Matter Pod (100) Subdweller Optics Improved Terrain Scanner Medium Armor Plating Gun Armor Assault Rifle Light Assault Rifle Heavy Assault Rifle Heavy Assault Rifle Subdweller Machine Gun Battle Cannon Grenade Launcher Mining Laser Peak State ------------ > --- POWER ------------ (None) > --- PROPULSION ------- Wheel Subdweller Monowheel > --- UTILITY ---------- High-capacity Storage Unit Makeshift Thermal Plating > --- WEAPON ----------- Heavy Assault Rifle Grenade Launcher > --- INVENTORY -------- Subdweller Power Source Subdweller Power Source Subdweller Power Source Subdweller Power Source Subdweller Monowheel Medium Matter Pod Medium Matter Pod Subdweller Optics Improved Terrain Scanner Medium Armor Plating Gun Armor Assault Rifle Light Assault Rifle Heavy Assault Rifle Heavy Assault Rifle Subdweller Machine Gun Battle Cannon Grenade Launcher Mining Laser [Rating: 15] Favorites ----------- Power Light Ion Engine Engine Light Ion Engine Power Core Light Nuclear Core Propulsion Wheel Wheel Wheel Utility Improved Terrain Scanner Device Improved Terrain Scanner Storage High-capacity Storage Unit Protection Medium Armor Plating Weapon Heavy Assault Rifle Ballistic Gun Heavy Assault Rifle Ballistic Cannon Light Cannon Launcher Grenade Launcher Special Weapon Mining Laser Build | -11 -10 -10 ------- Run | Yrd Mat Sub Slots Evolved . | . . . Power . | . . . Propulsion . | . . . Utility . | . . . Weapon . | . . . Parts Attached 48 | 7 22 19 Power 4 | 1 3 . Engine 3 | 1 2 . Core 1 | . 1 . Reactor . | . . . Propulsion 10 | 2 4 4 Treads . | . . . Leg . | . . . Wheel 10 | 2 4 4 Hover . | . . . Flight . | . . . Utility 10 | 2 3 5 Device 6 | 1 2 3 Storage 2 | 1 1 . Processor . | . . . Hackware . | . . . Protection 2 | . . 2 Artifact . | . . . Weapon 24 | 2 12 10 Energy Gun . | . . . Energy Cannon . | . . . Ballistic Gun 11 | 2 5 4 Ballistic Cannon 2 | . 2 . Launcher 9 | . 4 5 Special Weapon 2 | . 1 1 Impact Weapon . | . . . Slashing Weapon . | . . . Piercing Weapon . | . . . Special Melee Weapon . | . . . Unidentified Prototypes . | . . . Parts Lost 12 | . 3 9 Power 2 | . 1 1 Propulsion 7 | . 2 5 Utility . | . . . Weapon 3 | . . 3 Highest Loss Streak 6 | . 2 6 To Critical Strikes . | . . . Average Slot Usage (%) 94 | . 98 93 Engine 9 | . 10 8 Core 1 | . 3 . Wheel 27 | . 26 27 Device 13 | . 14 13 Storage 14 | . 14 14 Ballistic Gun 16 | . 20 15 Ballistic Cannon 2 | . 6 . Launcher 3 | . . 4 Special Weapon 5 | . . 7 Peak Build Rating 15 | 10 13 15 Average Rating 11 | 7 10 12 On Entrance 7 | . 10 13 Naked Turns . | . . . Heaviest Build 50 | 11 50 50 Greatest Support 30 | 26 26 30 Greatest Overweight (x) 4 | . 3 4 Average Overweight (x) 1 | . 1 1 Largest Inventory Capacity 20 | 8 20 20 Average Capacity 18 | 7 15 20 Most Carried 20 | 6 20 20 Average Carried 16 | 2 12 19 Final Capacity 20 | 8 20 20 Final Carried 20 | 6 20 19 Class Distribution -------------------- 63% | Scavenger-Mutant 36% | Mutant Dominant Class ---------------- Scavenger-Mutant | -10/Materials Scavenger-Mutant | -10/Subcaves Resources | -11 -10 -10 ----------- Run | Yrd Mat Sub Matter Collected 1555 | 314 747 494 Remotely . | . . . Salvage Created 1338 | 259 719 360 Parts 80 | 17 37 26 Haulers Intercepted 1 | . 1 . Recyclers Shooed 3 | . 3 . Parts Field Recycled . | . . . Retrieved Matter . | . . . Parts Self-Destructed 18 | . . 18 Prevented . | . . . Kills | -11 -10 -10 ------- Run | Yrd Mat Sub Combat Hostiles Destroyed 24 | . 8 16 Guns 3 | . 3 . Cannons 2 | . 2 . AOE 19 | . 3 16 Classes Destroyed 10 | 3 5 2 Worker 5 | 2 3 . Builder 1 | . 1 . Tunneler 6 | 5 1 . Hauler 1 | . 1 . Recycler 5 | 1 4 . Operator 1 | . 1 . Watcher 2 | . 2 . Swarmer 4 | . . 4 Grunt 8 | . 8 . Subdweller 12 | . . 12 Best Kill Streak 4 | 4 4 4 Combat Bots Only 4 | . 4 4 Max Kills in Single Turn 3 | 1 3 3 Gunslinging . | . . . Exploded 3 | . 2 3 Melee . | . . . Uniques/NPCs Destroyed . | . . . Combat | -11 -10 -10 -------- Run | Yrd Mat Sub Hostile Shots Fired 80 | . 35 45 Missed 21 | . 10 11 Damage Taken 1271 | . 492 779 Core 296 | . 82 214 Absorbed by Shields . | . . . Core Remaining (%) 100 | 100 . . Volleys Fired 161 | 22 64 75 Largest 2 | 2 2 2 Hottest 100 | 40 100 100 Shots Fired 253 | 44 117 92 Gun 147 | 44 85 18 Cannon 20 | . 20 . Launcher 41 | . 10 31 Special 45 | . 2 43 Kinetic 167 | 44 105 18 Thermal 45 | . 2 43 Explosive 41 | . 10 31 Electromagnetic . | . . . Robot Hit Streak 26 | 8 13 26 Robot Miss Streak 4 | 2 4 4 Penetration Max . | . . . Secondary Targets . | . . . Shots Hit Robots 125 | 29 66 30 Core Hits 70 | 14 32 24 Critical Kills . | . . . Critical Parts Destroyed 1 | . 1 . Critical Strikes 2 | . 2 . Destroy 1 | . 1 . Blast 1 | . 1 . Melee Attacks . | . . . Impact . | . . . Slashing . | . . . Piercing . | . . . Sneak Attacks . | . . . Combat Hostiles . | . . . Follow-up Attacks . | . . . Damage Inflicted 3118 | 235 1350 1533 Guns 974 | 235 585 154 Cannons 220 | . 220 . Explosions 1924 | . 545 1379 Melee . | . . . Ramming . | . . . Kinetic 1194 | 235 805 154 Thermal . | . . . Explosive 1924 | . 545 1379 Electromagnetic . | . . . Impact . | . . . Slashing . | . . . Piercing . | . . . Highest Corruption . | . . . Average Corruption . | . . . Corruption Purged . | . . . Corruption Blocked . | . . . Overload Shots . | . . . Overflow Damage 83 | . 78 5 Projectiles 4 | . 4 . Explosions 79 | . 74 5 Melee . | . . . Knockbacks 1 | . 1 . Impact . | . . . Kinetic 1 | . 1 . Secondary . | . . . Self-Inflicted Damage 214 | . 142 72 Shots 7 | . 3 4 Rammed . | . . . Targets Rammed . | . . . Kicked . | . . . Crushed . | . . . Highest Temperature 30 | . 30 . Average Temperature 11 | . 11 . Received Heat Transfer 240 | . 192 48 Siege Activations . | . . . Robots Corrupted . | . . . Combat Hostiles . | . . . Parts Fried . | . . . Impact Corruptions . | . . . Robots Melted . | . . . Combat Hostiles . | . . . Parts Melted . | . . . Heat Transferred . | . . . Parts Sabotaged . | . . . Parts Stolen . | . . . Parts Stripped . | . . . Power Chain Reactions . | . . . Alert | -11 -10 -10 ------- Run | Yrd Mat Sub Peak Influence 380 | 40 380 . Initial 26 | . 26 . Average 183 | 15 213 . Maximum Alert Level 1 | . 1 . Low Security (%) 42 | 100 31 . Level 1 57 | . 68 . Level 2 . | . . . Level 3 . | . . . Level 4 . | . . . Level 5 . | . . . High Security . | . . . Max Security . | . . . Squads Dispatched 2 | . 2 . Investigation . | . . . Extermination . | . . . Reinforcement 2 | . 2 . Assault . | . . . Garrison . | . . . Intercept . | . . . Searches Triggered . | . . . Construction Impeded . | . . . Haulers Reinforced . | . . . Active Scanning Responses . | . . . Cargo Convoy Interrupts . | . . . Stealth | -11 -10 -10 --------- Run | Yrd Mat Sub Distress Signals 4 | . 4 . Communications Jammed . | . . . Distress Signals . | . . . Times Spotted 38 | . 23 15 Peak Tracking Total 6 | . 5 6 Tactical Retreats 3 | . 2 1 Traps | -11 -10 -10 ------- Run | Yrd Mat Sub Traps Triggered . | . . . Indirectly . | . . . Trap Hack Attempts . | . . . Triggered . | . . . Disarmed . | . . . Reprogrammed . | . . . Reused . | . . . Traps Extracted . | . . . Installed . | . . . Triggered . | . . . Machines | -11 -10 -10 ---------- Run | Yrd Mat Sub Machines Disabled 4 | . 4 . Max in Single Turn 2 | . 2 . Machines Repaired . | . . . Machines Dismantled . | . . . Machines Sabotaged . | . . . Overloaded Fab Kills . | . . . Hacking | -11 -10 -10 --------- Run | Yrd Mat Sub Machines Accessed 3 | . 3 . Terminals 3 | . 3 . Fabricators . | . . . Repair Stations . | . . . Recycling Units . | . . . Scanalyzers . | . . . Garrison Access . | . . . Total Hacks 9 | . 9 . Successful 5 | . 5 . Failed 4 | . 4 . Catastrophic . | . . . Database Lockouts . | . . . Manual 7 | . 7 . Terminals 9 | . 9 . Fabricators . | . . . Repair Stations . | . . . Recycling Units . | . . . Scanalyzers . | . . . Garrison Access . | . . . Terminal Hacks 3 | . 3 . Robot Analysis 2 | . 2 . Terminal Index 1 | . 1 . Fabricator Hacks . | . . . Repair Station Hacks . | . . . Recycling Unit Hacks . | . . . Scanalyzer . | . . . Garrison Access Hacks . | . . . Unauthorized Hacks 2 | . 2 . Terminals 2 | . 2 . Botnet 2 | . 2 . Fabricators . | . . . Repair Stations . | . . . Recycling Units . | . . . Scanalyzers . | . . . Garrison Access . | . . . Data Cores Recovered . | . . . Used . | . . . Hacking Detections 3 | . 3 . Full Trace Events . | . . . Feedback Events . | . . . Feedback Blocked . | . . . Robot Schematics Acquired . | . . . Robots Built . | . . . Authchips . | . . . Time . | . . . Total Robot Build Rating . | . . . Part Schematics Acquired . | . . . Parts Built . | . . . Authchips . | . . . Time . | . . . Total Part Build Rating . | . . . Parts Repaired . | . . . Time . | . . . Parts Recycled . | . . . Recycled Matter . | . . . Retrieved Matter . | . . . Retrieved Components . | . . . Parts Scanalyzed . | . . . Part Schematics Acquired . | . . . Parts Damaged . | . . . Bothacking | -11 -10 -10 ------------ Run | Yrd Mat Sub Used RIF Installer . | . . . Robots Hacked . | . . . Non-combat . | . . . Combat . | . . . Robot Hacks Applied . | . . . Relay Couplers Released . | . . . Fabnet Peak Effective % . | . . . Robots Rewired . | . . . Allies Hacked . | . . . Hacks Repelled . | . . . Allies | -11 -10 -10 -------- Run | Yrd Mat Sub Total Allies . | . . . Largest Group . | . . . Highest-Rated Group . | . . . Highest-Rated Ally . | . . . Total Orders . | . . . Ally Attacks . | . . . Total Damage . | . . . Kills . | . . . Allies Corrupted . | . . . Allies Melted . | . . . Intel | -11 -10 -10 ------- Run | Yrd Mat Sub Robot Analysis Total 2 | . 2 . Derelict Logs Recovered 1 | . . 1 Drone Launches . | . . . Drone Recoveries . | . . . Exploration | -11 -10 -10 ------------- Run | Yrd Mat Sub Turns Passed 2727 | 144 817 1766 Spaces Moved 1448 | 79 567 802 Core 5 | 1 4 . Treads . | . . . Legs . | . . . Wheels 1443 | 78 563 802 Hover . | . . . Flight . | . . . Fastest Speed 50 | 50 80 105 Average Speed 105 | 89 102 108 Slowest Speed 200 | 100 200 140 Overloaded Moves . | . . . Propulsion Burnouts . | . . . Robots Hopped . | . . . Cave-ins Triggered . | . . . Exploration Rate (%) 40 | 5 74 42 Regions Visited 2 Branch Regions 1 Pre-discovered Areas . | . . . Known Exits Taken . | . . . Unknown Exits Taken 2 | 1 1 . Scrap Searched . | . . . Spaces Dug 13 | . . 13 Terrain Destroyed 187 | . 62 125 Melee . | . . . Projectile . | . . . AOE 187 | . 62 125 Terrain Rammed . | . . . Walls Destroyed . | . . . Machines Disabled . | . . . Actions | -11 -10 -10 --------- Run | Yrd Mat Sub Total 2322 | 113 689 1520 Wait 608 | . 9 599 Move 1446 | 78 566 802 Hop . | . . . Pick Up 39 | 6 18 15 Fast Attach 10 | 7 3 . Attach 10 | . 2 8 Detach 2 | . 1 1 Swap 28 | . 17 11 Drop 18 | . 9 9 Fire 161 | 22 64 75 Melee . | . . . Ram . | . . . Kick . | . . . Crush . | . . . Escape Stasis . | . . . Rewire . | . . . Trap . | . . . Miscellaneous . | . . . Route ------- -11/Scrapyard -10/Materials (discovered 4 exits: [*Mat x2] / [*Min] / [*Sub]) -10/Subcaves (discovered 1 exit: [*Mat]) History --------- Turn | Location | Event 10 | -11/Scrapyard | Discovered new exit (range 16) 145 | -11/Scrapyard | Entered Materials 306 | -10/Materials | Build established: Mutant 380 | -10/Materials | Discovered new exit (range 3) 468 | -10/Materials | Discovered new exit (range 3) 534 | -10/Materials | Discovered new exit (range 13) 628 | -10/Materials | Build established: Scavenger-Mutant 907 | -10/Materials | Discovered new exit (range 12) 962 | -10/Materials | Entered Subcaves 1119 | -10/Subcaves | A swath of the cavern ceiling suddenly collapsed 1178 | -10/Subcaves | A swath of the cavern ceiling suddenly collapsed 2059 | -10/Subcaves | A Subdweller sparked back to life 2074 | -10/Subcaves | Core integrity fell below 50% 2089 | -10/Subcaves | Found Prototype Protection 2108 | -10/Subcaves | Lost 6 parts (1p2n3w) 2373 | -10/Subcaves | Build established: Mutant 2420 | -10/Subcaves | Shifting Twisted Machinery released Piercing Trap 2420 | -10/Subcaves | Ambushed by Subdwellers from Twisted Machinery 2497 | -10/Subcaves | Ambushed by Subdweller buried in earth 2565 | -10/Subcaves | Learned 8 Materials zone layouts 2601 | -10/Subcaves | Ambushed by Subdwellers from Twisted Machinery 2638 | -10/Subcaves | Discovered new exit (range 5) 2643 | -10/Subcaves | Core integrity fell below 20% 2728 | -10/Subcaves | Destroyed by V1-PXM(R) with Subdweller Shrapnel Launcher Last Messages --------------- 02583_ Acquired 32 matter. 02585_ Subatomizers dissect the Sub. Laser. 02601_ TT-I51(R) emerges from the Twisted Machinery. 02608_ The unstable cave ceiling collapses. 02610_ TT-I51(R) destroyed. 02610_ A3-6R1(R) destroyed. 02618_ Dropped Imp. Terrain Scanner. 02623_ Acquired 30 matter. 02627_ Acquired Sub. Machine Gun. 02634_ Acquired 6 matter. 02638_ EXIT=FOUND 02642_ Com. Wheel destroyed. 02644_ S-10 Pest destroyed. 02677_ The unstable cave ceiling collapses. 02704_ Acquired Mak. Thermal Plating. 02708_ Acquired 22 matter. 02709_ Dropped Med. Armor Plating. 02710_ Acquired 27 matter. 02723_ V1-PXM(R): "MADSUB!" 02724_ Wheel destroyed. Map ----- +----------------------------------------------------+ | ###???????#?????????????????????????????????###% | | ##?????????????????????????????????????????# * | | #?#????????????#?#??????????????????????#?# % | | ####?####???#???????#????????????????????????# | | ##??## #??????????????#????????????????????## | | # #?## ##?#?#?#????????????????????????????# | | # #### ##??#?????????#????????????????????# | | # ## ##???????#????????????????????????# | | # #????????????????????????????????## | | & ##????? ?????????????????????????# | | ## % ##???? ? ? ""??????????????###### | | # ##????? ?? ???? ??????????# | | &&& ##???? R ##?????????????????# | | & #????""" #????????????????#### | | ##???# " #?????????????????#?## | | ####### ## % #???# ##??#????#???????#???# | | ###?## #### ##???# %] #??????????????????## | | ##??####??####??### & ###????????#??????## | | ###???????##?????# #??????????#????# | | ##??#???????#???? #???????????????# | | #???????????????# ####??????????### | | #??????#??????###; ##??????????# | | ## #??#?#??????#??##; ;# #????????#?# | | ### #??????#???????# ; # #?????????## | | #?? #????#????#????# # #?????????## | | #?? #???????##??#?## @ ;## #?????????# & | | ???####????#?????#?# ;# #???????##### | | ???#????#??????????# ; &#?####### ### | | ????????????????#??#; & ### ### ### | | ??????#???????##???#; ! | | #????????????#????### ] ! | | #????????????????#?# ## | | #???#??????????????# # ### ## ### ### | | ???????????????????# #####?## #### #### ### | | ???????????????????## ???????####?## #?# ## | | ???????????????????# ?????????????## ## ### | | ???????????????????# ??????????????### ##?# | | ?????#?????????????## ?????????????#?# ???# | | #???????????????????# ????????????????# #???## # | | ????????????????????# ????????????????## #?????##? | | ????????????????????##?????????????????##????????? | | ?????????????????????????????## ?????????########? | | ???????????????????????? ????# ????#??## ##? | | ?#?????????????????????? #### ????????# #? | | ##????????????????????? ???????## #? | | #?????????????????????? ##?????? #?? | | #????#??#???????????????? ##??????# #?? | | #????????? #####????????????# ##?####?# #??? | | #????????? ????????????## ### ### ]#???# | | ??????????# ??#????????## ## #???? | +----------------------------------------------------+ Best States ------------- Heat Dissipation 39 Energy Generation 14 Energy Capacity 160 Matter Stores 300 Matter Capacity 300 Sight Range 16 Terrain Scan Range 16 Terrain Scan Density 10 Armor Coverage 225 Evasion (%) 44 Item Schematics ----------------- None Robot Schematics ------------------ None Fabricated ------------ Nothing Alien Tech Used ----------------- None Achievements -------------- None Challenges ------------ None Game ------ Seed MakeshiftNodeLog Manual? 0 Play Time 00:21:38 Cumulative 190.6 hours Start 2025.03.10 @ 23:29:05 End 2025.03.10 @ 23:45:43 Sessions 1 Manual Loads 0 Difficulty Rogue Special Mode None Game No. 103 Rogue 103 Adventurer 0 Explorer 0 Win Type - Total 3 Types 1/0/1/1/0/0/0/0/0 Lore% 62 Gallery% 65 Achievement% 60 Wizard Run 0 Options --------- Layout 0 ASCII 0 Keyboard 1 Movement Vi Keybinds 0 Fullscreen 1 Font 12/Proggy Map View 83x54 Zoom Use 0% Tactical HUD 1 Map Filters NONE Filters NONE Steam 0 RUN: 9529e6d7-ad34-4d39-bad5-cede8074695b